bitfinex/quotes_ETHUSD_20260313
["timestamp","ask_amount","ask_price","bid_price","bid_amount"]
[1773431403423,6.5,2103.9,2103.4,1.437]
[1773431404110,7.24152208,2103.9,2103.1,0.0011]
[1773431404425,6.5,2103.7,2103.1,0.0011]
[1773431404922,6.5,2103.5,2103.1,0.0011]
[1773431405515,6.5,2103.5,2103.2,1.418]
[1773431406589,7.68842918,2103.7,2103.2,1.418]
[1773431410228,7.68842918,2103.7,2103.2,2.60666286]
[1773431410432,4.7528262,2104.1,2103.3,0.04754433]
[1773431410433,1.18826738,2104.0,2103.3,0.04754433]
[1773431410929,1.18826738,2104.0,2103.2,3.34818494]
[1773431411126,6.5,2104.0,2103.2,1.418]
[1773431411430,2.75,2103.9,2103.3,1.425]
[1773431411632,6.5,2103.8,2103.3,1.425]
[1773431413329,7.68832634,2103.8,2103.3,2.61357289]
[1773431413510,1.18829371,2103.9,2103.3,2.61357289]
[1773431413713,7.68829371,2103.9,2103.3,2.61357289]
[1773431414835,7.68829371,2103.9,2103.3,2.61467289]
[1773431415144,0.001,2103.6,2103.3,2.61467289]
[1773431415434,0.001,2103.6,2103.3,1.4261]
[1773431415639,0.001,2103.6,2103.3,2.61470827]
[1773431415841,0.001,2103.6,2103.3,1.4261]
[1773431416837,6.501,2103.6,2103.1,0.0011]
[1773431417636,7.68849536,2103.5,2103.1,0.0011]
[1773431418132,6.5,2103.2,2102.8,0.0011]
[1773431419434,6.5,2103.2,2102.9,1.416]
[1773431419738,7.68860837,2103.3,2102.9,1.416]
[1773431422823,6.5,2103.3,2102.9,1.416]
[1773431423025,7.68861852,2103.3,2102.9,1.416]
[1773431425616,7.68861852,2103.3,2102.8,0.0011]
[1773431426922,7.68861852,2103.3,2102.8,1.4191]
[1773431427123,7.68861852,2103.3,2103.1,0.0011]
[1773431427438,6.5,2103.0,2102.8,1.4191]
[1773431427634,7.24152208,2103.0,2102.6,0.0011]
[1773431428337,6.5,2103.0,2102.6,0.0011]
[1773431428937,7.68880865,2103.0,2102.6,0.04976016]
[1773431429730,7.68880865,2103.0,2102.6,0.0022]
[1773431430551,6.49945,2102.9,2102.1,0.0011]
[1773431431172,7.24097208,2102.7,2102.1,0.0011]
[1773431433357,6.49945,2102.5,2102.1,0.0011]
[1773431434247,6.49945,2102.3,2101.9,0.0011]
[1773431434962,6.49945,2102.3,2101.8,0.0011]
[1773431435367,6.49945,2102.1,2101.8,0.0011]
[1773431436147,7.6886251,2102.3,2101.8,0.04977826]
[1773431436561,7.6886251,2102.3,2101.8,0.0022]
[1773431438064,7.6886251,2102.3,2101.8,1.4121]
[1773431438871,7.6886251,2102.3,2101.6,0.0011]
[1773431439042,6.4989,2102.0,2101.3,0.0011]
[1773431439655,6.4989,2102.0,2101.8,0.0011]
[1773431439843,6.4989,2102.0,2101.3,0.0011]
[1773431440061,6.4989,2101.8,2101.3,0.0011]
[1773431440255,6.4989,2101.8,2101.3,1.3931]
[1773431442947,6.4989,2101.8,2101.3,2.58278689]
[1773431443146,7.68838542,2101.8,2101.3,2.58278689]
[1773431443375,1.19029605,2102.1,2101.4,0.0022]
[1773431443580,1.23785847,2102.1,2101.4,0.0022]
[1773431443778,0.04856242,2102.1,2101.4,0.0022]
[1773431444082,1.23784976,2102.1,2101.4,0.0022]
[1773431444372,0.001,2102.1,2101.4,0.0022]
[1773431444573,7.68803718,2102.4,2101.4,0.0022]
[1773431444775,0.04756242,2102.3,2101.5,0.0022]
[1773431444977,7.68803718,2102.4,2101.6,1.18956985]
[1773431444978,7.7355996,2102.4,2101.6,1.18956985]
[1773431445148,7.7355996,2102.4,2101.8,0.0022]
[1773431445355,7.6879401,2102.6,2101.8,0.0022]
[1773431445554,0.04756242,2102.5,2101.8,0.0022]
[1773431446578,6.54646242,2102.5,2101.8,0.0022]
[1773431447770,7.73556345,2102.5,2101.8,0.0022]
[1773431452085,7.73556345,2102.5,2102.0,0.0011]
[1773431452265,6.4999,2102.3,2102.1,1.414]
[1773431454085,0.001,2102.3,2102.1,1.414]
[1773431454270,0.001,2102.3,2102.1,1.4162]
[1773431454473,0.001,2102.3,2102.1,2.60548103]
[1773431454982,0.001,2102.3,2102.1,1.4162]
[1773431457189,0.001,2102.3,2102.1,2.6054813]
[1773431457684,0.001,2102.3,2102.2,0.0022]
[1773431459176,0.001,2102.3,2102.1,1.414]
[1773431459563,0.001,2102.3,2102.0,1.19263525]
[1773431459785,0.001,2102.3,2102.1,1.419]
[1773431462474,0.001,2102.3,2102.1,2.61044645]
[1773431462796,6.4994,2102.8,2102.2,0.0022]
[1773431462986,6.4994,2102.8,2102.3,0.0012]
[1773431463181,6.54696242,2102.7,2102.1,1.419]
[1773431463583,6.4994,2102.5,2102.2,1.415]
[1773431463783,1.18900409,2102.6,2102.0,0.0011]
[1773431463784,6.54696242,2102.4,2102.0,0.0011]
[1773431464675,6.44696242,2102.4,2101.8,0.0011]
[1773431464878,1.18900409,2102.6,2101.8,0.0011]
[1773431464879,6.47318121,2102.2,2101.8,0.0011]
[1773431465187,6.47318121,2102.2,2101.9,1.407]
[1773431465591,1.1892869,2102.1,2101.8,0.0011]
[1773431465798,6.47318121,2102.0,2101.5,0.0011]
[1773431465985,6.47318121,2101.8,2101.0,0.05363758]
[1773431466177,6.49999999,2101.7,2100.9,0.0011]
[1773431466698,6.49999999,2101.4,2100.8,0.0011]
[1773431467567,1.18973968,2101.3,2100.8,0.0011]
[1773431467764,6.49999999,2101.2,2100.8,0.0011]
[1773431469389,6.49999999,2101.2,2100.4,0.04760997]
[1773431469597,6.49999999,2101.2,2100.4,0.04870998]
[1773431470101,7.68930292,2101.1,2100.4,1.23891759]
[1773431470400,7.68890664,2101.8,2100.5,0.00110001]
[1773431470598,6.49944999,2101.6,2100.5,0.00110001]
[1773431471706,6.49944999,2101.6,2100.5,0.04870772]
[1773431472396,6.49944999,2101.4,2100.6,1.19013615]
[1773431472706,6.49944999,2101.4,2100.7,0.04760317]
[1773431473603,6.49944999,2101.4,2100.7,0.04870318]
[1773431474302,6.49944999,2101.4,2100.8,0.00110001]
[1773431474514,6.49944999,2101.6,2100.9,1.39110001]
[1773431474713,6.49944999,2101.6,2101.0,0.04869639]
[1773431474875,6.49944999,2101.6,2101.1,0.00110001]
[1773431475079,6.49944999,2101.8,2101.1,0.00110001]
[1773431476524,1.18951325,2101.7,2101.1,1.19095294]
[1773431476685,1.18951325,2101.7,2101.2,0.04759185]
[1773431477618,7.68896324,2101.7,2101.2,0.04759185]
[1773431478103,7.68896324,2101.7,2101.2,0.04869186]
[1773431478286,7.68896324,2101.7,2101.2,0.00110001]
[1773431479908,7.68896582,2101.7,2101.2,0.00110001]
[1773431480310,7.68873689,2102.1,2101.2,0.00110001]
[1773431480490,1.19026708,2102.2,2101.2,0.00110001]
[1773431481191,7.68971707,2102.2,2101.2,0.00110001]
[1773431481892,7.68971707,2102.2,2101.3,1.406]
[1773431483753,7.68971707,2102.2,2101.3,2.5957382]
[1773431484402,7.68971707,2102.2,2101.4,0.00110001]
[1773431488202,0.001,2102.3,2101.3,4.45108421]
[1773431488396,7.27920981,2102.3,2101.5,6.02208654]
[1773431488597,0.001,2102.3,2101.5,6.02208654]
[1773431488792,6.08898629,2102.7,2101.4,6.17157153]
[1773431490021,1.18900409,2102.6,2101.6,6.02208654]
[1773431490237,7.27799038,2102.6,2101.6,6.02208654]
[1773431490728,0.001,2102.0,2101.6,6.02208654]
[1773431490935,7.27799038,2102.6,2101.6,6.02208654]
[1773431492615,1.18900409,2102.6,2101.8,6.02208654]
[1773431492922,7.27790894,2102.8,2102.0,6.02208654]
[1773431494630,7.27790894,2102.8,2102.2,6.02208654]
[1773431496128,7.27790894,2102.8,2102.0,6.02208654]
[1773431496312,7.27790894,2102.8,2101.9,1.415]
[1773431496626,7.27790894,2102.8,2101.9,2.60439777]
[1773431496833,7.27790894,2102.8,2101.9,8.62648431]
[1773431498327,7.27790894,2102.8,2102.0,6.02208654]
[1773431498631,7.27790894,2102.8,2102.1,6.06965801]
[1773431499220,7.27790894,2102.8,2102.1,7.25891586]
[1773431499934,7.27790894,2102.8,2102.1,6.06965801]
[1773431500233,7.27790894,2102.8,2102.1,6.02208654]
[1773431501237,7.27790894,2102.8,2102.0,1.18929398]
[1773431501534,7.27790894,2102.8,2102.0,7.21138052]
[1773431502932,7.27788169,2102.8,2102.0,7.21138052]
[1773431504031,0.001,2102.6,2102.0,7.21138052]
[1773431504434,6.08898629,2102.5,2102.1,1.419]
[1773431504937,0.001,2102.6,2102.1,7.44108654]
[1773431505434,0.001,2102.6,2102.2,7.59984647]
[1773431507331,0.001,2102.6,2102.3,0.04756695]
[1773431509032,0.001,2102.6,2102.2,6.41061614]
[1773431509339,0.001,2102.6,2102.2,7.59981565]
[1773431509737,6.39272296,2102.9,2102.3,6.41061614]
[1773431509913,7.58151508,2103.0,2102.3,6.41061614]
[1773431511343,7.58151508,2103.0,2102.5,6.06044003]
[1773431511524,7.58151508,2103.0,2102.6,1.422]
[1773431512948,7.63624083,2103.3,2102.7,6.06044003]
[1773431513646,7.63624083,2103.3,2102.7,7.24938411]
[1773431514147,7.63624083,2103.3,2102.7,6.06044003]
[1773431514745,7.63624083,2103.3,2102.7,7.24938747]
[1773431515124,7.63627271,2103.3,2102.7,7.24938747]
[1773431515325,7.63627271,2103.3,2102.7,6.06044003]
[1773431515948,7.63627271,2103.3,2102.7,7.24937653]
[1773431517143,0.001,2103.1,2102.7,7.24937653]
[1773431517930,0.001,2103.1,2102.7,7.29693442]
[1773431520237,0.001,2103.6,2102.9,0.74181437]
[1773431520548,7.63604631,2103.7,2103.0,6.06044003]
[1773431520753,7.63604631,2103.7,2103.1,7.48744003]
[1773431521527,7.63604631,2103.7,2103.1,1.427]
[1773431522159,7.63604631,2103.7,2102.7,6.06044003]
[1773431523342,0.74162313,2103.5,2102.8,1.428]
[1773431523556,6.44763246,2103.4,2102.8,1.428]
[1773431524435,6.44763246,2103.2,2102.8,1.428]
[1773431524634,6.44763246,2103.2,2102.9,1.429]
[1773431524847,6.44763246,2103.2,2103.0,1.429]
[1773431525164,6.44763246,2103.2,2102.4,7.25065217]
[1773431525330,7.18925559,2103.2,2102.4,0.0011]
[1773431526261,6.44763246,2102.8,2102.4,0.0011]
[1773431526436,6.44763246,2102.6,2102.4,0.0011]
[1773431527661,6.44763246,2102.6,2102.5,1.429]
[1773431527861,7.63658,2102.7,2102.5,1.429]
[1773431528359,7.63658,2102.7,2102.4,0.0011]
[1773431529467,7.63658,2102.7,2102.1,0.0011]
[1773431529468,6.44763246,2102.4,2102.1,0.0011]
[1773431529972,6.44763246,2102.4,2101.9,0.0011]
[1773431530581,6.44763246,2101.9,2101.5,0.0011]
[1773431531238,6.44763246,2101.7,2101.3,0.0011]
[1773431531744,6.44763246,2101.7,2101.3,1.426]
[1773431531956,6.44763246,2101.7,2101.0,0.03445466]
[1773431532263,6.44763246,2101.7,2101.0,0.0011]
[1773431532663,6.44763246,2101.5,2101.0,0.0011]
[1773431533374,6.44763246,2101.5,2100.8,0.0011]
[1773431533935,6.44763246,2101.5,2100.9,1.428]
[1773431534134,6.44763246,2101.5,2100.8,0.0011]
[1773431534846,6.44763246,2101.3,2100.8,0.0011]
[1773431536467,6.44763246,2101.3,2100.9,1.429]
[1773431537062,6.44763246,2101.1,2100.8,0.0011]
[1773431539346,1.18990956,2101.0,2100.8,0.0011]
[1773431540268,6.44763246,2101.7,2100.8,6.06154003]
[1773431540473,6.44763246,2101.6,2101.0,6.06044003]
[1773431541460,7.65728618,2101.5,2101.0,6.06154003]
[1773431541771,7.65728618,2101.5,2101.1,1.431]
[1773431544261,6.46765973,2102.0,2101.2,6.46684073]
[1773431548283,7.65705979,2101.9,2101.3,7.65658041]
[1773431548494,1.18936732,2102.0,2101.3,7.65658041]
[1773431548654,4.7558377,2102.7,2101.3,7.65658041]
[1773431548655,6.46765973,2102.6,2101.3,7.65658041]
[1773431550181,6.46765973,2102.4,2101.3,7.65658041]
[1773431551181,6.46765973,2102.4,2101.3,7.70416999]
[1773431551479,1.18906064,2102.5,2101.3,7.70416999]
[1773431551654,7.65672037,2102.5,2101.3,7.70416999]
[1773431553860,0.001,2102.3,2101.3,7.70416999]
[1773431556180,1.19017376,2102.3,2101.3,7.70416999]
[1773431556788,7.65783349,2102.3,2101.3,7.70416999]
[1773431559689,7.65783349,2102.3,2101.3,1.23732926]
[1773431560007,7.65783349,2102.3,2101.4,6.46684073]
[1773431560289,7.65783349,2102.3,2101.5,1.436]
[1773431562986,7.65787072,2102.3,2101.6,6.51442352]
[1773431563191,1.19021099,2102.3,2101.6,6.51442352]
[1773431563369,0.001,2102.3,2101.6,6.51442352]
[1773431563570,7.65664934,2102.7,2101.7,6.46684073]
[1773431563766,7.65664934,2102.7,2101.9,6.46684073]
[1773431563966,7.65664934,2102.7,2101.8,1.18945627]
[1773431564169,7.65664934,2102.7,2102.0,1.437]
[1773431565869,0.001,2102.3,2102.0,1.437]
[1773431567690,0.001,2102.3,2102.1,6.10728149]
[1773431570596,0.001,2102.3,2102.0,2.6262992]
[1773431571582,0.001,2102.3,2102.0,8.74954675]
[1773431573698,0.93142892,2104.1,2102.0,8.74954675]
[1773431573699,7.2769002,2103.0,2102.2,6.12324755]
[1773431575770,7.2769002,2103.0,2102.2,7.31245901]
[1773431577416,7.27690846,2103.0,2102.2,7.31245901]
[1773431577570,6.08812227,2103.3,2102.2,7.31245901]
[1773431577773,7.27674079,2103.3,2102.4,6.12324755]
[1773431578503,0.001,2102.8,2102.6,6.12324755]
[1773431579580,6.08812227,2103.2,2102.5,1.442]
[1773431579780,7.27678827,2103.2,2102.7,7.31219509]
[1773431579981,6.08812227,2103.2,2102.7,7.31219509]
[1773431580385,7.27678755,2103.2,2102.7,7.31219509]
[1773431580796,6.08812227,2103.2,2102.7,7.31219509]
[1773431581102,7.27680995,2103.2,2102.7,7.31219509]
[1773431581593,7.27680995,2103.2,2102.7,6.12324755]
[1773431583208,6.08812227,2103.2,2102.7,7.31215593]
[1773431583503,0.001,2103.5,2102.8,6.12324755]
[1773431583678,7.2764683,2103.8,2102.8,6.12324755]
[1773431584109,6.08812227,2103.7,2102.6,7.31220942]
[1773431584269,6.08812227,2103.7,2102.9,1.444]
[1773431584804,6.08812227,2103.7,2103.0,1.444]
[1773431585107,6.08812227,2103.7,2102.7,6.17080545]
[1773431585812,6.08812227,2103.7,2102.7,6.12324755]
[1773431586324,6.08812227,2103.5,2102.8,1.445]
[1773431588337,1.18855186,2103.4,2102.8,1.445]
[1773431588618,6.08812227,2103.3,2102.8,1.445]
[1773431589118,6.08812227,2103.3,2102.5,6.12324755]
[1773431589418,6.08812227,2103.3,2102.3,7.31238859]
[1773431590309,6.08812227,2103.1,2102.4,1.446]
[1773431590501,6.08812227,2103.1,2102.2,0.0011]
[1773431591192,6.08812227,2103.1,2102.6,0.0011]
[1773431591394,6.08812227,2102.8,2102.2,0.0011]
[1773431591613,6.08812227,2102.8,2102.4,0.0011]
[1773431591794,6.08812227,2102.8,2102.2,0.0011]
[1773431592217,6.08812227,2102.8,2101.7,6.12434755]
[1773431592518,6.08812227,2102.6,2101.7,6.12434755]
[1773431593129,6.08812227,2102.5,2101.7,0.0011]
[1773431593635,6.08812227,2102.5,2101.8,6.12324755]
[1773431593816,6.08812227,2102.5,2101.9,7.55724755]
[1773431594530,7.27722819,2102.5,2101.9,7.55724755]
[1773431600145,7.27722819,2102.5,2102.0,6.12324755]
[1773431602618,7.27722819,2102.5,2102.0,1.444]
[1773431602822,7.27722819,2102.5,2101.7,0.0011]
[1773431603441,7.27722819,2102.5,2101.7,6.48328523]
[1773431603941,7.27722819,2102.5,2102.1,0.0011]
[1773431604316,6.38652921,2102.3,2102.1,0.0011]
[1773431606642,1.18923033,2102.2,2102.1,0.0011]
[1773431607416,6.38552921,2102.7,2102.2,6.48218523]
[1773431607617,6.38552921,2102.7,2102.2,6.46906487]
[1773431607927,6.38552921,2102.7,2102.3,1.446]
[1773431608113,6.38552921,2102.7,2102.2,6.46906487]
[1773431609040,7.5745333,2102.6,2102.1,0.0011]
[1773431609543,7.5745333,2102.6,2102.2,1.447]
[1773431610639,1.18900409,2102.6,2102.2,7.92918523]
[1773431611370,6.38552921,2102.7,2102.2,7.92918523]
[1773431611640,6.38552921,2102.9,2102.3,6.48218523]
[1773431613947,1.188891,2102.8,2102.3,7.67131429]
[1773431614144,7.57429136,2103.1,2102.3,7.67131429]
[1773431616545,0.001,2102.9,2102.3,7.67131429]
[1773431616850,6.38652921,2102.9,2102.3,7.67131429]
[1773431617349,6.38652921,2102.9,2102.1,6.48328523]
[1773431617649,6.38652921,2102.9,2102.4,1.45]
[1773431618242,6.38652921,2102.9,2102.1,6.48328523]
[1773431618880,1.18866489,2103.2,2102.2,6.48218523]
[1773431619357,1.18866489,2103.2,2102.4,6.48218523]
[1773431619544,7.57514581,2103.3,2102.4,6.48218523]
[1773431621337,7.57514581,2103.3,2102.6,6.48218523]
[1773431623543,1.1896166,2103.3,2102.8,6.48218523]
[1773431623738,7.57514581,2103.3,2102.9,7.93518523]
[1773431623937,7.57514581,2103.3,2102.9,1.453]
[1773431624138,7.57514581,2103.3,2102.5,7.67119452]
[1773431625250,7.57514581,2103.3,2102.6,1.454]
[1773431625448,7.57514581,2103.3,2102.6,7.52262692]
[1773431626244,6.14998836,2103.3,2102.7,6.06862692]
[1773431627565,0.001,2103.3,2102.7,6.06862692]
[1773431627946,0.001,2103.3,2102.9,6.06862692]
[1773431628965,0.001,2103.1,2102.7,6.06862692]
[1773431629375,0.001,2103.1,2102.8,1.455]
[1773431630258,0.001,2103.1,2102.8,7.52362692]
[1773431631543,0.001,2103.1,2102.9,6.44916306]
[1773431631949,0.001,2103.1,2102.8,7.90416306]
[1773431633378,0.001,2103.1,2102.9,0.04755337]
[1773431633747,0.001,2103.1,2102.9,6.49671643]
[1773431634078,0.001,2103.1,2102.9,6.44916306]
[1773431634272,0.001,2103.1,2102.8,6.4967187]
[1773431634572,0.001,2103.1,2103.0,1.458]
[1773431636054,0.001,2103.1,2102.8,0.04755564]
[1773431636571,0.001,2103.1,2102.7,6.44916306]
[1773431637277,0.001,2103.1,2102.8,1.46]
[1773431638917,6.19709844,2104.5,2103.0,6.44916306]
[1773431639192,6.19709844,2104.3,2103.0,6.44916306]
[1773431639767,6.19709844,2104.0,2103.0,6.44916306]
[1773431639971,6.19709844,2103.3,2102.4,6.45026306]
[1773431640192,6.19709844,2104.3,2102.7,6.44916306]
[1773431640488,6.19709844,2103.7,2102.7,6.44916306]
[1773431640671,6.19709844,2103.5,2102.7,6.44916306]
[1773431641185,6.19709844,2103.5,2102.9,0.0011]
[1773431641373,0.001,2103.1,2102.9,0.0011]
[1773431641592,6.19809844,2103.1,2102.9,0.0011]
[1773431641792,6.19809844,2103.1,2102.6,0.0011]
[1773431642909,7.38587637,2103.0,2102.6,0.0011]
[1773431643295,7.38587637,2103.0,2102.7,1.46]
[1773431644120,7.38587637,2103.0,2102.6,0.0011]
[1773431645791,7.38587637,2103.0,2102.7,1.463]
[1773431647020,0.001,2103.1,2102.7,1.463]
[1773431647320,7.38682336,2103.1,2102.7,1.463]
[1773431648018,0.001,2103.1,2102.8,6.44916306]
[1773431648818,0.001,2103.1,2102.8,6.4967187]
[1773431649242,0.001,2103.1,2102.8,6.44916306]
[1773431650328,6.19709844,2103.7,2102.9,6.49671643]
[1773431651326,6.19709844,2103.7,2102.7,1.463]
[1773431651822,6.19709844,2103.7,2102.8,6.4967187]
[1773431652144,7.3855373,2103.6,2103.0,6.44916306]
[1773431652339,7.31410087,2103.9,2103.0,6.44916306]
[1773431652340,1.18829346,2103.9,2103.0,6.44916306]
[1773431652646,7.3853919,2103.9,2103.0,6.44916306]
[1773431653827,7.3853919,2103.9,2103.0,6.45026306]
[1773431654230,7.3853919,2103.9,2103.2,6.44916306]
[1773431654426,7.3853919,2103.9,2103.3,1.469]
[1773431656434,6.19709844,2103.6,2103.0,7.92126306]
[1773431656951,6.19709844,2103.6,2103.0,1.4721]
[1773431658322,7.3855938,2103.5,2103.0,1.4721]
[1773431665756,7.3855938,2103.5,2103.0,7.84008786]
[1773431666350,7.3855938,2103.5,2103.2,0.0011]
[1773431666787,7.07165139,2103.2,2103.0,1.4721]
[1773431667067,7.07165139,2103.2,2102.8,0.0011]
[1773431668247,7.07165139,2103.2,2102.9,1.479]
[1773431669148,7.07165139,2103.2,2102.7,0.0011]
[1773431672888,7.07165139,2103.2,2102.7,6.36908786]
[1773431676185,7.07165139,2103.2,2102.7,0.0011]
[1773431678978,7.07165139,2103.2,2102.9,0.0011]
[1773431679186,7.07165139,2103.2,2102.7,0.0011]
[1773431680268,7.07165139,2103.2,2102.7,6.36908786]
[1773431683985,7.07165139,2103.2,2102.5,0.0011]
[1773431685288,7.07165139,2103.2,2102.6,1.486]
[1773431685778,7.07165139,2103.2,2102.5,0.0011]
[1773431685779,6.15801738,2103.0,2102.5,0.0011]
[1773431685978,6.15801738,2102.8,2102.5,0.0011]
[1773431686488,6.15801738,2102.8,2102.1,6.02318363]
[1773431687684,6.15801738,2102.8,2102.2,1.487]
[1773431688190,6.15801738,2102.6,2102.2,1.487]
[1773431689104,6.15801738,2102.6,2102.1,6.02318363]
[1773431690180,1.18906064,2102.5,2102.1,6.02318363]
[1773431690480,7.34707802,2102.5,2102.1,7.51018363]
[1773431690989,7.34707802,2102.5,2102.3,0.0011]
[1773431693591,1.18906064,2102.5,2102.3,0.0011]
[1773431693891,1.18904207,2102.6,2102.3,5.92157056]
[1773431694140,7.11458864,2102.7,2102.3,5.92157056]
[1773431694402,1.18899039,2102.7,2102.3,5.92157056]
[1773431698506,5.92559825,2102.7,2102.3,5.92157056]
[1773431700001,5.92559825,2102.7,2102.3,0.0011]
[1773431700517,5.92559825,2102.7,2101.7,5.92157056]
[1773431700518,1.1892869,2102.1,2101.7,5.92157056]
[1773431700811,7.11488515,2102.1,2101.7,0.0011]
[1773431701222,1.1892869,2102.1,2101.7,5.92157056]
[1773431702016,7.11488515,2102.1,2101.7,5.92157056]
[1773431703126,7.11488515,2102.1,2101.9,0.0011]
[1773431704794,7.11488515,2102.1,2101.6,1.4891]
[1773431704795,5.92559825,2102.0,2101.6,1.4891]
[1773431704997,5.92559825,2102.0,2101.4,0.0011]
[1773431706015,1.1892869,2102.1,2101.4,5.92157056]
[1773431706312,7.11488515,2102.1,2101.5,7.40847056]
[1773431706611,7.11488515,2102.1,2101.5,1.488]
[1773431706814,7.11488515,2102.1,2101.5,7.40847056]
[1773431708295,7.11488515,2102.1,2101.5,1.488]
[1773431710223,7.11488515,2102.1,2101.6,5.92047056]
[1773431710420,7.11490178,2102.1,2101.6,5.92047056]
[1773431713019,7.11465889,2102.5,2101.6,7.11003188]
[1773431715409,7.11465889,2102.5,2101.8,0.0011]
[1773431715608,7.11465889,2102.5,2101.9,5.92047056]
[1773431715826,0.001,2102.3,2102.0,1.488]
[1773431716409,5.92559825,2102.2,2101.8,0.0011]
[1773431717517,5.92559825,2102.2,2101.8,1.4901]
[1773431717518,7.11488515,2102.1,2101.8,1.4901]
[1773431717827,7.11488515,2102.1,2101.5,5.92157056]
[1773431718829,7.11488515,2102.1,2101.6,1.489]
[1773431720733,7.11488515,2102.1,2101.6,7.40947056]
[1773431722635,0.001,2102.3,2101.7,5.9907946]
[1773431722940,1.19018809,2102.3,2101.7,5.9907946]
[1773431723144,0.001,2102.3,2101.7,5.9907946]
[1773431723328,6.3830575,2102.6,2101.8,5.94321407]
[1773431723329,1.19002438,2102.6,2101.8,5.94321407]
[1773431723510,0.001,2102.6,2101.8,5.94321407]
[1773431723716,7.57206937,2102.6,2101.8,5.94321407]
[1773431724709,7.57206937,2102.6,2101.8,7.132659]
[1773431727543,7.57206937,2102.6,2102.0,5.94321407]
[1773431728340,7.57206937,2102.6,2102.1,1.491]
[1773431728540,0.001,2102.4,2102.1,1.491]
[1773431728948,0.001,2102.4,2102.1,7.43421407]
[1773431729442,1.19011719,2102.4,2102.1,7.43421407]
[1773431729848,0.001,2102.4,2102.2,5.94321407]
[1773431734051,0.001,2102.4,2102.1,1.491]
[1773431734251,6.3830575,2102.4,2102.1,1.491]
[1773431736133,7.57222048,2102.4,2102.1,1.491]
[1773431738460,7.57219619,2102.4,2102.1,1.491]
[1773431740358,0.001,2102.4,2102.2,5.94321407]
[1773431740760,0.001,2102.4,2102.3,0.0011]
[1773431741140,0.001,2102.6,2102.3,5.94431407]
[1773431744263,6.3830575,2102.6,2102.3,0.0011]
[1773431745569,1.18906064,2102.5,2102.3,0.0011]
[1773431750666,0.001,2102.6,2102.3,6.51897309]
[1773431751275,7.63792427,2102.9,2102.4,6.36530409]
[1773431751489,7.63792427,2102.9,2102.5,1.498]
[1773431752361,7.63792427,2102.9,2102.5,7.86330409]
[1773431754758,7.63792427,2102.9,2102.5,1.498]
[1773431757984,7.63792427,2102.9,2102.5,7.86330409]
[1773431760482,7.63792427,2102.9,2102.5,1.498]
[1773431763300,7.63792427,2102.9,2102.4,0.0011]
[1773431763594,7.63792427,2102.9,2102.4,6.36640409]
[1773431764494,7.63792427,2102.9,2102.5,1.5]
[1773431765282,7.63792427,2102.9,2102.4,6.36640409]
[1773431765594,7.63792427,2102.9,2102.5,0.0011]
[1773431765803,4.75533786,2103.3,2102.5,0.0011]
[1773431765804,1.18860837,2103.3,2102.6,6.36530409]
[1773431765965,1.18860837,2103.3,2102.6,6.36450409]
[1773431766596,7.63867705,2103.4,2102.8,6.36530409]
[1773431769969,7.63867705,2103.4,2102.8,7.5541654]
[1773431770470,7.63867705,2103.4,2102.8,7.60172104]
[1773431771278,7.63867705,2103.4,2102.8,7.5541654]
[1773431772406,7.63867705,2103.4,2102.8,6.36530409]
[1773431772775,7.63867705,2103.4,2102.7,1.5]
[1773431772972,7.63867705,2103.4,2102.7,7.86530409]
[1773431773174,7.63867705,2103.4,2102.8,1.502]
[1773431775680,7.63867705,2103.4,2102.8,7.86730409]
[1773431777620,0.001,2103.4,2102.9,6.36530409]
[1773431777784,0.001,2103.4,2103.0,6.36530409]
[1773431778410,1.18955692,2103.4,2103.0,6.36530409]
[1773431778704,7.63864526,2103.4,2103.0,6.36530409]
[1773431779104,1.18955692,2103.4,2103.0,6.36530409]
[1773431779694,0.001,2103.4,2103.0,6.36530409]
[1773431781018,0.001,2103.4,2103.1,6.02703957]
[1773431781314,0.001,2103.4,2103.2,1.503]
[1773431781515,0.001,2103.4,2103.1,6.02703957]
[1773431782195,7.33291823,2103.4,2102.8,4.84800473]
[1773431782691,7.33291823,2103.4,2102.9,1.504]
[1773431782905,7.33291823,2103.4,2102.8,4.82800473]
[1773431784113,7.33291823,2103.4,2102.9,6.3795581]
[1773431784314,7.33291823,2103.4,2103.0,4.82800473]
[1773431784512,6.09681737,2103.4,2103.1,4.87555358]
[1773431784702,1.18955609,2103.4,2103.1,4.87555358]
[1773431785113,1.18955609,2103.4,2103.1,4.7663364]
[1773431785295,6.09581737,2103.3,2102.7,1.5051]
[1773431785495,6.09581737,2103.1,2102.7,1.5051]
[1773431786289,7.2845953,2103.0,2102.7,1.5051]
[1773431787319,1.1884812,2103.6,2102.9,4.7663364]
[1773431787618,7.28423918,2103.7,2103.1,4.7663364]
[1773431787786,7.34365829,2103.7,2103.1,4.7663364]
[1773431788218,7.34365829,2103.7,2103.2,1.505]
[1773431788393,7.34365829,2103.7,2103.3,4.7663364]
[1773431788715,1.24784092,2103.7,2103.3,4.7663364]
[1773431788911,1.18842181,2103.7,2103.3,4.7663364]
[1773431789917,1.18842181,2103.7,2103.2,1.505]
[1773431789918,5.09032679,2104.0,2103.2,1.505]
[1773431790117,6.27856105,2104.0,2103.3,5.77182698]
[1773431790320,0.001,2103.5,2103.3,5.77182698]
[1773431790619,6.27856105,2104.0,2103.5,5.77082698]
[1773431790998,6.1859693,2104.0,2103.5,5.77082698]
[1773431791202,7.28363511,2104.7,2103.5,5.77082698]
[1773431791402,6.09581737,2104.5,2103.5,5.77082698]
[1773431791594,6.09581737,2104.3,2103.5,5.77082698]
[1773431791790,6.15522236,2104.2,2103.5,5.77082698]
[1773431792420,7.28363511,2104.7,2103.5,5.86341873]
[1773431792586,1.18780005,2104.8,2103.5,5.86341873]
[1773431792791,1.239101,2104.8,2103.5,5.86341873]
[1773431794230,7.33491837,2104.8,2103.5,5.91095854]
[1773431794402,7.33491837,2104.8,2103.7,5.86341873]
[1773431794593,7.33491837,2104.8,2103.8,1.507]
[1773431794594,6.09581737,2104.7,2103.8,1.507]
[1773431794799,6.09581737,2104.5,2103.8,1.507]
[1773431795000,6.14711832,2104.4,2103.8,1.507]
[1773431795221,6.14711832,2104.4,2103.8,7.37041873]
[1773431795830,6.14711832,2104.4,2103.6,5.86341873]
[1773431796036,6.14711832,2104.4,2103.7,1.507]